Cogmind - Beta 13 @@@ ROGUE MODE // 2024.04.25 @ 23:22:28 Player: GregoriusTechneticies Result: Destroyed by ZL-KQA(R) with Subdweller Machine Gun Performance ------------- Evolutions (0) 0 Regions Visited (2) 400 Robots Destroyed (25) 125 Value Destroyed (239) 239 Prototype IDs (0) 0 Alien Tech Used (0) 0 Bonus (0) 0 TOTAL SCORE: 764 Bonus ------- None Cogmind --------- Core Integrity 0/250 Matter 176/300 Energy 125/125 System Corruption 0% Temperature Cool (0) Movement Rolling (95) Ox1 Location -10/Subcaves Parts ------- > --- POWER (1) -------- Light Ion Engine > --- PROPULSION (2) --- Wheel > --- UTILITY (2) ------ Medium Storage Unit Seismic Detector > --- WEAPON (2) ------- Backup Laser I Light Assault Rifle > --- INVENTORY (10) --- Light Ion Engine Backup Power I Medium Matter Pod (100) Structural Scanner Signal Interpreter Improved Terrain Scanner Terrain Scan Processor Seismic Detector Mining Laser Mining Laser Peak State ------------ > --- POWER ------------ Light Ion Engine > --- PROPULSION ------- Wheel Wheel > --- UTILITY ---------- Small Storage Unit Seismic Detector > --- WEAPON ----------- Light Assault Rifle Light Assault Rifle > --- INVENTORY -------- Wheel Wheel Wheel Improved Terrain Scanner Seismic Detector Seismic Detector Mining Laser Mining Laser [Rating: 8] Favorites ----------- Power Light Ion Engine Engine Light Ion Engine Propulsion Wheel Wheel Wheel Utility Seismic Detector Device Seismic Detector Storage Medium Storage Unit Weapon Light Assault Rifle Energy Gun Backup Laser I Ballistic Gun Light Assault Rifle Build | -11 -10 -10 ------- Run | Yrd Mat Sub Slots Evolved . | . . . Power . | . . . Propulsion . | . . . Utility . | . . . Weapon . | . . . Parts Attached 28 | 9 19 . Power 4 | 1 3 . Engine 4 | 1 3 . Core . | . . . Reactor . | . . . Propulsion 9 | 3 6 . Treads . | . . . Leg . | . . . Wheel 9 | 3 6 . Hover . | . . . Flight . | . . . Utility 6 | 3 3 . Device 4 | 2 2 . Storage 2 | 1 1 . Processor . | . . . Hackware . | . . . Protection . | . . . Artifact . | . . . Weapon 9 | 2 7 . Energy Gun . | . . . Energy Cannon . | . . . Ballistic Gun 9 | 2 7 . Ballistic Cannon . | . . . Launcher . | . . . Special Weapon . | . . . Impact Weapon . | . . . Slashing Weapon . | . . . Piercing Weapon . | . . . Special Melee Weapon . | . . . Unidentified Prototypes . | . . . Parts Lost 8 | . 7 1 Power 1 | . 1 . Propulsion 3 | . 2 1 Utility 1 | . 1 . Weapon 3 | . 3 . Highest Loss Streak 6 | . 6 1 To Critical Strikes . | . . . Average Slot Usage (%) 88 | . 86 98 Engine 10 | . 10 14 Wheel 25 | . 25 27 Device 13 | . 13 14 Storage 14 | . 14 14 Energy Gun 6 | . 4 14 Ballistic Gun 17 | . 17 14 Naked Turns . | . . . Heaviest Build 16 | 11 16 16 Greatest Support 20 | 20 20 20 Greatest Overweight (x) 4 | 1 4 . Average Overweight (x) . | . . . Largest Inventory Capacity 10 | 8 10 10 Average Capacity 9 | 7 9 10 Most Carried 10 | 8 10 10 Average Carried 8 | 4 9 10 Final Capacity 10 | 8 10 10 Final Carried 10 | 8 10 10 Class Distribution -------------------- 55% | Scavenger-Mutant 44% | Mutant Dominant Class ---------------- Scavenger-Mutant | -10/Materials Scavenger-Mutant | -10/Subcaves Resources | -11 -10 -10 ----------- Run | Yrd Mat Sub Matter Collected 655 | 428 227 . Remotely . | . . . Salvage Created 572 | 319 253 . Parts 69 | 32 37 . Haulers Intercepted . | . . . Recyclers Shooed 1 | . 1 . Parts Field Recycled . | . . . Retrieved Matter . | . . . Parts Self-Destructed 5 | . . 5 Prevented . | . . . Kills | -11 -10 -10 ------- Run | Yrd Mat Sub Combat Hostiles Destroyed 8 | . 8 . Guns 8 | . 8 . Classes Destroyed 6 | 3 3 . Worker 2 | 2 . . Builder 4 | . 4 . Tunneler 10 | 9 1 . Recycler 1 | 1 . . Swarmer 6 | . 6 . Grunt 2 | . 2 . Best Kill Streak 4 | 4 3 . Combat Bots Only 3 | . 3 . Max Kills in Single Turn 2 | 1 2 . Gunslinging 1 | . 1 . Exploded . | . . . Melee . | . . . Uniques/NPCs Destroyed . | . . . Combat | -11 -10 -10 -------- Run | Yrd Mat Sub Hostile Shots Fired 97 | . 86 11 Missed 24 | . 21 3 Damage Taken 886 | . 725 161 Core 265 | . 205 60 Absorbed by Shields . | . . . Core Remaining (%) 100 | 100 . . Volleys Fired 115 | 43 65 7 Largest 2 | 2 2 2 Hottest 50 | 40 50 50 Shots Fired 198 | 86 98 14 Gun 198 | 86 98 14 Cannon . | . . . Launcher . | . . . Special . | . . . Kinetic 185 | 86 92 7 Thermal 13 | . 6 7 Explosive . | . . . Electromagnetic . | . . . Robot Hit Streak 9 | 9 7 8 Robot Miss Streak 5 | 5 5 1 Penetration Max . | . . . Secondary Targets 4 | . 4 . Max Gunslinging Chain 1 | . 1 . Shots Hit Robots 108 | 47 50 11 Core Hits 44 | 21 22 1 Critical Kills . | . . . Critical Parts Destroyed . | . . . Critical Strikes . | . . . Melee Attacks . | . . . Impact . | . . . Slashing . | . . . Piercing . | . . . Sneak Attacks . | . . . Combat Hostiles . | . . . Follow-up Attacks . | . . . Damage Inflicted 1049 | 381 571 97 Guns 1049 | 381 571 97 Cannons . | . . . Explosions . | . . . Melee . | . . . Ramming . | . . . Kinetic 959 | 381 527 51 Thermal 90 | . 44 46 Explosive . | . . . Electromagnetic . | . . . Impact . | . . . Slashing . | . . . Piercing . | . . . Highest Corruption . | . . . Average Corruption . | . . . Corruption Purged . | . . . Corruption Blocked . | . . . Overload Shots . | . . . Overflow Damage . | . . . Projectiles . | . . . Explosions . | . . . Melee . | . . . Knockbacks . | . . . Impact . | . . . Kinetic . | . . . Secondary . | . . . Self-Inflicted Damage . | . . . Shots . | . . . Rammed . | . . . Targets Rammed . | . . . Kicked . | . . . Crushed . | . . . Highest Temperature 10 | . 10 . Average Temperature 6 | . 6 . Received Heat Transfer 246 | . 246 . Siege Activations . | . . . Robots Corrupted . | . . . Combat Hostiles . | . . . Parts Fried . | . . . Impact Corruptions . | . . . Robots Melted . | . . . Combat Hostiles . | . . . Parts Melted . | . . . Heat Transferred 370 | . 185 185 Parts Sabotaged . | . . . Parts Stolen . | . . . Parts Stripped . | . . . Power Chain Reactions . | . . . Alert | -11 -10 -10 ------- Run | Yrd Mat Sub Peak Influence 217 | 60 217 . Initial 39 | . 39 . Average 88 | 27 116 . Maximum Alert Level 1 | . 1 . Low Security (%) 88 | 100 82 . Level 1 11 | . 17 . Level 2 . | . . . Level 3 . | . . . Level 4 . | . . . Level 5 . | . . . High Security . | . . . Max Security . | . . . Squads Dispatched . | . . . Investigation . | . . . Extermination . | . . . Reinforcement . | . . . Assault . | . . . Garrison . | . . . Intercept . | . . . Searches Triggered . | . . . Construction Impeded . | . . . Haulers Reinforced . | . . . Active Scanning Responses . | . . . Cargo Convoy Interrupts . | . . . Stealth | -11 -10 -10 --------- Run | Yrd Mat Sub Distress Signals 2 | . 2 . Communications Jammed . | . . . Distress Signals . | . . . Times Spotted 14 | . 13 1 Peak Tracking Total 7 | . 7 1 Tactical Retreats . | . . . Traps | -11 -10 -10 ------- Run | Yrd Mat Sub Traps Triggered 2 | . 2 . Indirectly . | . . . Trap Hack Attempts . | . . . Triggered . | . . . Disarmed . | . . . Reprogrammed . | . . . Reused . | . . . Traps Extracted . | . . . Installed . | . . . Triggered . | . . . Machines | -11 -10 -10 ---------- Run | Yrd Mat Sub Machines Disabled 2 | . 2 . Max in Single Turn 1 | . 1 . Machines Repaired . | . . . Machines Dismantled . | . . . Machines Sabotaged . | . . . Overloaded Fab Kills . | . . . Hacking | -11 -10 -10 --------- Run | Yrd Mat Sub Machines Accessed 2 | . 2 . Terminals 1 | . 1 . Fabricators . | . . . Repair Stations 1 | . 1 . Recycling Units . | . . . Scanalyzers . | . . . Garrison Access . | . . . Total Hacks 6 | . 6 . Successful 3 | . 3 . Failed 3 | . 3 . Catastrophic . | . . . Database Lockouts . | . . . Manual 5 | . 5 . Terminals 5 | . 5 . Fabricators . | . . . Repair Stations 1 | . 1 . Recycling Units . | . . . Scanalyzers . | . . . Garrison Access . | . . . Terminal Hacks 1 | . 1 . Branch Access Points 1 | . 1 . Fabricator Hacks . | . . . Repair Station Hacks 1 | . 1 . Refit 1 | . 1 . Recycling Unit Hacks . | . . . Scanalyzer . | . . . Garrison Access Hacks . | . . . Unauthorized Hacks 1 | . 1 . Terminals 1 | . 1 . Botnet 1 | . 1 . Fabricators . | . . . Repair Stations . | . . . Recycling Units . | . . . Scanalyzers . | . . . Garrison Access . | . . . Data Cores Recovered . | . . . Used . | . . . Hacking Detections 1 | . 1 . Full Trace Events 1 | . 1 . Feedback Events . | . . . Feedback Blocked . | . . . Robot Schematics Acquired . | . . . Robots Built . | . . . Authchips . | . . . Time . | . . . Total Robot Build Rating . | . . . Part Schematics Acquired . | . . . Parts Built . | . . . Authchips . | . . . Time . | . . . Total Part Build Rating . | . . . Parts Repaired . | . . . Time . | . . . Parts Recycled . | . . . Recycled Matter . | . . . Retrieved Matter . | . . . Retrieved Components . | . . . Parts Scanalyzed . | . . . Part Schematics Acquired . | . . . Parts Damaged . | . . . Bothacking | -11 -10 -10 ------------ Run | Yrd Mat Sub Used RIF Installer . | . . . Robots Hacked . | . . . Non-combat . | . . . Combat . | . . . Robot Hacks Applied . | . . . Relay Couplers Released . | . . . Fabnet Peak Effective % . | . . . Robots Rewired . | . . . Allies Hacked . | . . . Hacks Repelled . | . . . Allies | -11 -10 -10 -------- Run | Yrd Mat Sub Total Allies . | . . . Largest Group . | . . . Highest-Rated Group . | . . . Highest-Rated Ally . | . . . Total Orders . | . . . Ally Attacks . | . . . Total Damage . | . . . Kills . | . . . Allies Corrupted . | . . . Allies Melted . | . . . Intel | -11 -10 -10 ------- Run | Yrd Mat Sub Robot Analysis Total . | . . . Derelict Logs Recovered 1 | . . 1 Drone Launches . | . . . Drone Recoveries . | . . . Exploration | -11 -10 -10 ------------- Run | Yrd Mat Sub Turns Passed 1024 | 280 608 136 Spaces Moved 638 | 179 315 144 Core 12 | 2 10 . Treads . | . . . Legs . | . . . Wheels 626 | 177 305 144 Hover . | . . . Flight . | . . . Fastest Speed 50 | 50 80 80 Average Speed 82 | 80 85 80 Slowest Speed 250 | 95 250 80 Overloaded Moves . | . . . Propulsion Burnouts . | . . . Robots Hopped . | . . . Cave-ins Triggered . | . . . Exploration Rate (%) 13 | 4 26 10 Regions Visited 2 Branch Regions 1 Pre-discovered Areas . | . . . Known Exits Taken . | . . . Unknown Exits Taken 2 | 1 1 . Scrap Searched . | . . . Spaces Dug . | . . . Terrain Destroyed . | . . . Melee . | . . . Projectile . | . . . AOE . | . . . Terrain Rammed . | . . . Walls Destroyed . | . . . Machines Disabled . | . . . Actions | -11 -10 -10 --------- Run | Yrd Mat Sub Total 971 | 248 570 153 Wait 144 | . 142 2 Move 636 | 178 314 144 Hop . | . . . Pick Up 26 | 13 13 . Fast Attach 15 | 7 8 . Attach 1 | . 1 . Detach . | . . . Swap 12 | 2 10 . Drop 22 | 5 17 . Fire 115 | 43 65 7 Melee . | . . . Ram . | . . . Kick . | . . . Crush . | . . . Escape Stasis . | . . . Rewire . | . . . Trap . | . . . Miscellaneous . | . . . Route ------- -11/Scrapyard -10/Materials (discovered 3 exits: *Min x2 / [*Sub]) -10/Subcaves History --------- Turn | Location | Event 6 | -11/Scrapyard | Discovered new exit (range 15) 281 | -11/Scrapyard | Entered Materials 313 | -10/Materials | Build established: Mutant 401 | -10/Materials | Discovered new exit (range 11) 463 | -10/Materials | Core integrity fell below 50% 485 | -10/Materials | Core integrity fell below 20% 505 | -10/Materials | Lost 6 parts (2n1u3w) 644 | -10/Materials | Identified exit to Mines 762 | -10/Materials | Build established: Scavenger-Mutant 863 | -10/Materials | Discovered new exit (range 9) 889 | -10/Materials | Entered Subcaves 893 | -10/Subcaves | Learned Materials security intel 1025 | -10/Subcaves | Destroyed by ZL-KQA(R) with Subdweller Machine Gun Last Messages --------------- 00852_ T-07 Excavator is excavating. 00854_ U-05 Engineer builds a Wall. 00856_ T-07 Excavator is excavating. 00863_ EXIT=FOUND 00874_ T-07 Excavator destroyed. 00877_ Acquired 20 matter. 00879_ U-05 Engineer lays Concrete. 00881_ Dropped Backup Power I. 00881_ Acquired Lgt. Ion Engine. 00881_ U-05 Engineer lays Concrete. 00881_ Dropped Lgt. Ion Engine. 00882_ Acquired Lgt. Ion Engine. 00886_ Dropped Lgt. Ion Engine. 00887_ Acquired Backup Power I. LOCATION=UNKNOWN AMBIENT_HEAT=-10 GOAL=ESCAPE 00893_ Acquired derelict log, extracted data. Data stored: Materials security intel. 01019_ Wheel destroyed. Map ----- +----------------------------------------------------+ | ?????????????????????????????????????????????????? | | ?????????????????????????????????????????????????? | | ????????????????#####????????????????????????????? | | ???????????????## #??????????????????####??????? | | ????? ??????## #########??????????## #???#??? | | ???? """?##?# ## ####???????# #??# "## | | ????# "" # ## ##??????# #?# """ | | ?????#" " #?????## #?# " | | ??????# "" ## #????## #? " " | | ??????# #### ## #????# #?# "" | | ?????# ????## #???## ##?# "" | | ?????##??????# ## #??## #?## "" | | ?????????????## #### ##?## ### " | | ??????????????###### #???# ##??# #??? | | ???????????????????# ##???##???# ##?? | | ???????????????????## #????????# #?? | | ????????????????????# #??###???## ### | | ??????????????###???# #### ##### ## ## | | ??????????????# #??# ## ## | | ?????????????## #?# #?# ## | | ?????????????# ## # # #?## #### | | ????????????????# ##### #?## ######## # | | ????????????????### #### ## ### #??### | | ??????????????????# #?## ### ## #????? | | ??????????????????# ### ## ## ####????? | | ??????????????????## ##@ #### #???????? | | ???????????????????# R #?## #???????? | | ???????????????????# #?# # ##### #???????? | | ???????????????????#### ###?######????##???????? | | ??????????????????????# ##?????????????????????? | | ??????????????????????# #?????????????????????? | | ??????????????????????# #?????????????????????? | | ??????????????????????# #?????????????????????? | | ??????????????????????# """#????????????????????? | | ??????????????????????## ""##????????????????????? | | ???????????????????????#####?????????????????????? | | ?????????????????????????????????????????????????? | | ?????????????????????????????????????????????????? | | ?????????????????????????????????????????????????? | | ?????????????????????????????????????????????????? | | ?????????????????????????????????????????????????? | | ?????????????????????????????????????????????????? | | ?????????????????????????????????????????????????? | | ?????????????????????????????????????????????????? | | ?????????????????????????????????????????????????? | | ?????????????????????????????????????????????????? | | ?????????????????????????????????????????????????? | | ?????????????????????????????????????????????????? | | ?????????????????????????????????????????????????? | | ?????????????????????????????????????????????????? | +----------------------------------------------------+ Best States ------------- Heat Dissipation 25 Energy Generation 10 Energy Capacity 125 Matter Stores 300 Matter Capacity 300 Sight Range 16 Terrain Scan Density 10 Evasion (%) 44 Item Schematics ----------------- None Robot Schematics ------------------ None Fabricated ------------ Nothing Alien Tech Used ----------------- None Achievements -------------- None Challenges ------------ None Game ------ Seed AlloyRecoilShearcannon Manual? 0 Play Time 00:11:32 Cumulative 54.6 hours Start 2024.04.25 @ 23:02:40 End 2024.04.25 @ 23:22:28 Sessions 1 Manual Loads 0 Difficulty Rogue Special Mode None Game No. 78 Rogue 63 Adventurer 0 Explorer 15 Win Type - Total 0 Types 0/0/0/0/0/0/0/0/0 Lore% 32 Gallery% 39 Achievement% 29 Wizard Run 0 Options --------- Layout 1 ASCII 0 Keyboard 0 Movement Mouse Keybinds 0 Fullscreen 1 Font 24/Smallcaps Map View 50x35 Zoom Use 0% Tactical HUD 1 Map Filters NONE Filters NONE Steam 1 RUN: 91a65ef0-76a4-4a0f-9d49-ab48ffa0cda3